bitfinex/quotes_ETHUSD_20240713
["timestamp","ask_amount","ask_price","bid_price","bid_amount"]
[1720832088567,5.20598127,3141.4,3141.3,0.11251641]
[1720832088872,5.20598127,3141.4,3141.2,0.813]
[1720832089190,2.4462,3141.4,3141.3,0.11251641]
[1720832089344,5.20636791,3141.4,3141.3,0.11251641]
[1720832089537,5.20636791,3141.4,3141.2,0.813]
[1720832089980,5.20636791,3141.4,3141.3,0.11252245]
[1720832090271,5.20636791,3141.4,3141.2,0.813]
[1720832090470,5.20636791,3141.4,3141.3,0.11252245]
[1720832090671,2.4462,3141.4,3141.2,0.813]
[1720832090976,5.20705095,3141.4,3141.3,0.11252245]
[1720832091487,5.20705095,3141.4,3141.2,0.813]
[1720832091692,5.20705095,3141.4,3141.3,0.11252245]
[1720832091870,5.20705095,3141.4,3141.0,0.813]
[1720832092058,2.33752694,3141.1,3141.0,0.813]
[1720832093095,2.67100425,3141.1,3141.0,0.813]
[1720832094395,0.33347731,3141.1,3141.0,0.813]
[1720832095864,0.33347731,3141.1,3141.0,0.92574655]
[1720832096320,2.67005284,3141.1,3141.0,0.92574655]
[1720832097489,0.33347731,3141.1,3141.0,0.92574655]
[1720832098503,3.0956257,3141.1,3141.0,0.11274655]
[1720832098675,3.0956257,3141.1,3140.8,0.813]
[1720832098876,3.0956257,3141.1,3140.9,0.11284056]
[1720832100483,3.0956257,3141.1,3141.0,0.813]
[1720832100678,3.0956257,3141.1,3141.0,0.92576585]
[1720832100877,0.33347731,3141.1,3141.0,0.92576585]
[1720832101085,3.09527419,3141.1,3141.0,0.92576585]
[1720832102302,0.33347731,3141.1,3141.0,0.92576585]
[1720832102467,3.09519245,3141.1,3141.0,0.92576585]
[1720832103778,0.33347731,3141.1,3141.0,0.92576585]
[1720832104101,3.09485571,3141.1,3141.0,0.92576585]
[1720832104873,0.33347731,3141.1,3141.0,0.92576585]
[1720832105372,2.7613784,3141.2,3141.0,0.92576585]
[1720832107192,3.63886712,3141.5,3141.0,0.92576585]
[1720832107503,2.76194281,3141.1,3141.0,0.92576585]
[1720832107806,3.63886712,3141.5,3141.0,0.92576585]
[1720832108107,2.76185529,3141.2,3141.0,0.11276585]
[1720832108276,2.76185529,3141.2,3141.1,0.813]
[1720832108481,2.76185529,3141.2,3141.1,0.9256815]
[1720832110122,3.3053895,3141.4,3141.1,0.9256815]
[1720832110331,4.63112621,3141.4,3141.1,0.9256815]
[1720832111529,2.76184317,3141.2,3141.1,0.9256815]
[1720832111904,3.3053895,3141.4,3141.1,0.9256815]
[1720832116899,2.4985,3141.3,3141.1,0.1126815]
[1720832117128,2.4985,3141.3,3140.9,0.813]
[1720832117317,2.76194553,3141.1,3141.0,0.11271639]
[1720832117515,2.7619997,3141.1,3141.0,0.11271639]
[1720832117917,2.4985,3141.3,3141.0,0.11271639]
[1720832118123,2.7620028,3141.2,3141.0,0.11271639]
[1720832118438,2.7620028,3141.1,3141.0,0.11271639]
[1720832119012,2.7620028,3141.2,3141.0,0.11271639]
[1720832119237,2.7620028,3141.2,3141.1,0.813]
[1720832119651,2.7620028,3141.2,3141.1,0.92563807]
[1720832120142,2.76233561,3141.2,3141.1,0.92563807]
[1720832121045,2.7626312,3141.2,3141.1,0.92563807]
[1720832124351,2.76260522,3141.2,3141.1,0.92563807]
[1720832125753,5.98966712,3141.5,3141.1,0.11263807]
[1720832125754,3.3053895,3141.4,3141.1,0.11263807]
[1720832125955,4.61635621,3141.4,3141.1,0.11263807]
[1720832126150,4.61635621,3141.4,3140.9,0.813]
[1720832126455,2.76262999,3141.1,3140.9,0.813]
[1720832127021,3.09611156,3141.1,3140.9,0.813]
[1720832127622,0.33348157,3141.1,3140.9,0.813]
[1720832127955,3.09611112,3141.1,3140.9,0.813]
[1720832128153,0.33348157,3141.1,3140.9,0.813]
[1720832128632,3.09611829,3141.1,3140.9,0.813]
[1720832129223,0.33348157,3141.1,3140.9,0.813]
[1720832131946,2.33848628,3141.0,3140.9,0.813]
[1720832132146,2.76193936,3141.2,3140.9,0.813]
[1720832132349,2.76193936,3141.2,3141.1,0.813]
[1720832132757,2.76193936,3141.2,3140.9,0.813]
[1720832134667,2.76227426,3141.2,3140.9,0.813]
[1720832138080,2.76225786,3141.2,3140.9,0.813]
[1720832138480,3.3053895,3141.4,3140.9,0.813]
[1720832138685,2.7621218,3141.2,3140.9,0.813]
[1720832138885,2.7621218,3141.1,3140.9,0.813]
[1720832139274,2.7621218,3141.2,3140.9,0.813]
[1720832140494,2.7621218,3141.1,3140.9,0.813]
[1720832140870,2.76160653,3141.1,3141.0,0.11270073]
[1720832141295,4.58300845,3141.4,3141.0,0.11270073]
[1720832141465,2.76161108,3141.1,3141.0,0.11270073]
[1720832144877,2.76144931,3141.1,3141.0,0.11270073]
[1720832146689,2.76144931,3141.2,3141.0,0.11270073]
[1720832147078,2.76144931,3141.1,3141.0,0.11270073]
[1720832147279,2.76144931,3141.2,3141.0,0.11270073]
[1720832147587,5.6561895,3141.5,3141.1,0.2]
[1720832147774,3.3053895,3141.4,3141.1,0.2]
[1720832147981,3.3053895,3141.4,3141.2,0.11255132]
[1720832148377,3.3053895,3141.4,3141.1,0.2]
[1720832148779,3.3053895,3141.4,3141.2,0.11255132]
[1720832149300,3.3053895,3141.4,3141.1,0.2]
[1720832149541,2.4637,3141.2,3141.1,0.2]
[1720832150028,11.497228,3141.2,3141.1,0.2]
[1720832151073,9.033528,3141.2,3140.0,0.813]
[1720832151371,2.4637,3140.3,3140.1,0.10585149]
[1720832151899,2.4637,3140.3,3139.6,7.36]
[1720832151900,2.7562507,3140.2,3139.6,7.36]
[1720832152120,2.33328279,3139.7,3139.1,2.3935]
[1720832152328,2.33328279,3139.7,3139.5,0.813]
[1720832152828,2.33328279,3139.7,3139.4,0.813]
[1720832153519,1.99713074,3139.5,3139.4,0.813]
[1720832153832,1.99713074,3139.6,3139.4,0.813]
[1720832154875,0.52199507,3140.1,3139.4,0.813]
[1720832155089,1.99612633,3139.6,3139.4,0.813]
[1720832155494,1.99612633,3139.7,3139.4,0.813]
[1720832155771,1.66277484,3139.5,3139.4,0.813]
[1720832155992,1.66277484,3139.5,3139.4,0.91951222]
[1720832157372,1.99612633,3139.7,3139.4,0.91951222]
[1720832157713,1.66164545,3139.5,3139.4,0.91951222]
[1720832158221,2.4637,3140.3,3139.4,0.91951222]
[1720832158370,1.66163443,3139.5,3139.4,0.91951222]
[1720832158801,1.66159107,3139.5,3139.4,0.91951222]
[1720832159504,1.66159107,3139.6,3139.4,0.91951222]
[1720832159874,1.66159107,3139.5,3139.4,0.91951222]
[1720832160990,2.3117,3139.8,3139.4,0.91951222]
[1720832161205,0.23117,3139.7,3139.4,0.91951222]
[1720832161389,1.66069443,3139.5,3139.4,0.91951222]
[1720832161573,1.66069443,3139.6,3139.4,0.91951222]
[1720832162481,1.32804278,3139.5,3139.4,0.91951222]
[1720832165601,1.32804278,3139.6,3139.4,0.91951222]
[1720832168388,1.32804278,3139.7,3139.4,0.91951222]
[1720832168596,1.32804278,3139.6,3139.4,0.91951222]
[1720832169321,1.9898396,3140.1,3139.6,2.22952]
[1720832169322,1.32804278,3139.9,3139.6,2.22952]
[1720832169491,1.32804278,3140.0,3139.7,0.813]
[1720832169693,1.32804278,3140.0,3139.9,0.813]
[1720832170011,1.32804278,3140.0,3139.9,0.9193056]
[1720832170526,1.65819966,3140.1,3139.9,0.9193056]
[1720832170693,1.82401963,3140.1,3139.9,0.9193056]
[1720832170894,1.65822161,3140.0,3139.9,0.1063056]
[1720832171142,2.3114,3140.0,3139.5,0.813]
[1720832171295,2.3114,3140.0,3139.6,0.1065299]
[1720832171296,1.32658661,3139.8,3139.6,0.1065299]
[1720832171495,1.32658661,3139.7,3139.6,0.1065299]
[1720832171696,1.32658661,3139.7,3139.5,0.813]
[1720832171903,1.32658661,3139.7,3139.6,0.10647851]
[1720832172397,1.32658661,3139.8,3139.5,0.813]
[1720832173099,1.32658661,3139.8,3139.6,0.10647851]
[1720832173319,1.32658661,3139.8,3139.7,0.813]
[1720832173499,1.32658661,3139.9,3139.7,0.91940373]
[1720832174193,1.32658661,3139.8,3139.7,0.91940373]
[1720832174398,1.32658661,3139.9,3139.7,0.91940373]
[1720832177219,1.32658661,3139.8,3139.7,0.10640373]
[1720832177528,1.32658661,3139.8,3139.5,0.813]
[1720832177730,1.32658661,3139.8,3139.6,0.10647851]
[1720832178300,1.32658661,3139.9,3139.6,0.10647851]
[1720832178640,1.32658661,3139.8,3139.6,0.10647851]
[1720832178803,1.32658661,3139.8,3139.7,0.813]
[1720832179112,1.32658661,3139.8,3139.7,0.91940373]
[1720832182062,1.32658661,3139.8,3139.7,1.11940373]
[1720832182641,1.65971729,3139.8,3139.7,1.11940373]
[1720832182962,1.32815627,3139.8,3139.7,1.11940373]
[1720832184418,1.66041601,3139.9,3139.7,1.11940373]
[1720832184622,1.66041601,3139.8,3139.7,1.11940373]
[1720832185351,1.56463455,3139.8,3139.7,1.11940373]
[1720832185545,1.99249922,3140.0,3139.7,1.11940373]
[1720832185936,1.99249922,3140.0,3139.7,1.31940373]
[1720832186142,1.99249922,3140.1,3139.7,1.31940373]
[1720832186343,2.3114,3140.3,3139.7,1.31940373]
[1720832186344,1.99249922,3140.0,3139.7,1.31940373]
[1720832187663,1.99414078,3140.0,3139.7,0.50640373]
[1720832190287,1.99414078,3140.0,3139.7,0.70640373]
[1720832190450,1.99414078,3139.9,3139.7,0.70640373]
[1720832190794,2.32649758,3140.2,3139.7,0.70640373]
[1720832190795,1.99414078,3139.8,3139.7,0.70640373]
[1720832191648,1.99660179,3139.8,3139.7,0.70640373]
[1720832192032,2.32936875,3140.0,3139.7,0.70640373]
[1720832193383,2.32936875,3139.9,3139.7,0.70640373]
[1720832194320,2.33174755,3139.9,3139.7,0.90640373]
[1720832194605,0.55267566,3140.1,3139.7,0.90640373]
[1720832194606,4.77471274,3139.8,3139.7,0.90640373]
[1720832194747,2.92047127,3139.8,3139.7,0.90640373]
[1720832195581,5.67480694,3139.8,3139.7,0.90640373]
[1720832196459,5.19733567,3139.8,3139.7,0.90640373]
[1720832196660,2.75433567,3139.9,3139.7,0.90640373]
[1720832197163,2.75433567,3139.9,3139.7,1.71940373]
[1720832197357,2.33482302,3139.8,3139.7,4.07460373]
[1720832197579,2.33482302,3139.9,3139.7,4.07460373]
[1720832197757,2.33488563,3139.9,3139.7,4.07460373]
[1720832199261,2.33488563,3140.0,3139.7,4.07460373]
[1720832201071,5.75295196,3140.5,3139.7,4.07460373]
[1720832201275,2.33463312,3140.0,3139.9,0.813]
[1720832201586,2.443,3140.5,3139.9,0.813]
[1720832201787,2.75768362,3140.2,3139.9,0.91938087]
[1720832201958,5.443,3140.5,3139.9,0.91938087]
[1720832201959,2.33471993,3140.0,3139.9,0.91938087]
[1720832204195,2.33460477,3140.0,3139.9,0.91938087]
[1720832204413,2.33460725,3140.0,3139.9,0.91938087]
[1720832206575,2.33460725,3140.1,3139.9,0.91938087]
[1720832206796,2.33460725,3140.1,3140.0,0.813]
[1720832206998,7.42,3140.4,3140.1,4.59756]
[1720832206999,9.75460725,3140.4,3140.1,4.59756]
[1720832207195,2.00128635,3140.2,3140.1,4.59756]
[1720832207492,9.42128635,3140.4,3140.1,5.41056]
[1720832207673,9.42060981,3140.4,3140.3,0.813]
[1720832208074,7.42,3140.4,3140.3,0.813]
[1720832208386,9.42068917,3140.4,3140.3,0.813]
[1720832208593,7.42,3140.4,3140.3,0.813]
[1720832210601,7.42,3140.9,3140.3,0.813]
[1720832210797,2.2638,3141.1,3140.5,0.813]
[1720832211580,2.2638,3141.3,3140.7,0.813]
[1720832212398,2.33258047,3141.0,3140.7,0.813]
[1720832212770,2.33258047,3141.0,3140.8,0.1055768]
[1720832212993,2.33258047,3141.0,3140.9,0.813]
[1720832214580,2.33258047,3141.0,3140.9,0.91846864]
[1720832215405,7.42,3141.4,3140.9,0.91846864]
[1720832215572,8.7193752,3141.4,3140.9,0.91846864]
[1720832216604,1.2993752,3141.4,3140.9,0.91846864]
[1720832216774,3.0,3141.5,3140.9,0.91846864]
[1720832218002,5.57375196,3141.6,3140.9,0.91846864]
[1720832219902,3.0,3141.5,3140.9,0.91846864]
[1720832221389,2.4937,3141.4,3140.9,0.10546864]
[1720832221790,2.4937,3141.4,3140.5,0.813]
[1720832221991,0.54937,3141.3,3140.5,0.813]
[1720832222168,0.54937,3141.3,3140.6,0.10559603]
[1720832223623,3.0,3141.5,3140.8,2.467]
[1720832223988,3.0,3141.5,3140.9,0.10537187]
[1720832224736,5.74425196,3141.6,3140.9,0.10537187]
[1720832224878,5.74425196,3141.6,3140.9,0.91837187]
[1720832225236,3.30995196,3141.6,3140.9,0.91837187]
[1720832225583,3.88437716,3141.6,3140.9,0.91837187]
[1720832228641,3.88437716,3141.6,3141.2,0.2]
[1720832228951,3.88437716,3141.6,3141.3,0.10506948]
[1720832229321,2.4343,3141.5,3141.2,0.2]
[1720832229528,1.99344596,3141.3,3141.2,0.2]
[1720832230444,1.99346256,3141.3,3141.2,0.2]
[1720832230779,1.99336666,3141.3,3141.2,0.2]
[1720832232270,1.99336666,3141.4,3141.2,0.2]
[1720832233380,1.99336666,3141.4,3141.2,0.4]
[1720832234176,2.4343,3141.8,3141.2,0.4]
[1720832234381,1.99317114,3141.4,3141.2,0.4]
[1720832234882,1.99317114,3141.4,3141.3,0.10507184]
[1720832235087,1.99327944,3141.4,3141.2,0.4]
[1720832235303,1.99327944,3141.3,3141.2,0.4]
[1720832235811,1.99327944,3141.4,3141.2,0.4]
[1720832235967,1.99327944,3141.5,3141.2,0.4]
[1720832236865,1.99327944,3141.5,3141.2,2.867]
[1720832237075,1.99327944,3141.5,3141.2,3.067]
[1720832237797,1.99339277,3141.5,3141.2,3.067]
[1720832238211,1.99330469,3141.5,3141.2,3.067]
[1720832238552,1.99330469,3141.5,3141.2,0.6]
[1720832238763,1.99330469,3141.4,3141.2,0.6]
[1720832239483,1.99330469,3141.3,3141.2,0.6]
[1720832240471,2.52523816,3141.5,3141.2,0.6]
[1720832240871,2.3885,3141.3,3141.2,0.6]
[1720832241176,2.3885,3141.3,3141.2,0.8]
[1720832241382,5.20617315,3141.3,3141.2,0.8]
[1720832242501,2.87990942,3141.3,3141.2,0.8]
[1720832242871,5.20740322,3141.3,3141.2,0.8]
[1720832243375,2.87990942,3141.3,3141.2,0.8]
[1720832249273,5.63211272,3141.3,3141.2,0.8]
[1720832250490,2.87990942,3141.3,3141.2,0.8]
[1720832252291,0.49140942,3141.3,3141.2,0.8]
[1720832253614,3.30995196,3141.4,3141.2,0.8]
[1720832253797,5.95328243,3141.5,3141.2,0.8]
[1720832254183,3.30995196,3141.4,3141.2,0.8]
[1720832255006,3.30995196,3141.5,3141.2,0.8]
[1720832255218,10.72995196,3141.7,3141.4,0.813]
[1720832255409,2.75790863,3141.6,3141.4,0.813]
[1720832255597,10.17790863,3141.7,3141.4,0.813]
[1720832255800,10.17790863,3141.7,3141.5,0.10494755]
[1720832255801,2.75790863,3141.6,3141.5,0.10494755]
[1720832256518,2.75790863,3141.6,3141.3,2.3627]
[1720832256813,7.42,3141.7,3141.5,0.10489262]
[1720832256997,8.22059379,3141.7,3141.4,0.1049673]
[1720832257201,8.22059379,3141.7,3141.6,0.1047451]
[1720832257396,8.22059379,3141.7,3141.2,0.8]
[1720832257592,2.75731667,3141.5,3141.2,0.8]
[1720832257820,2.75731667,3141.5,3141.3,0.10496796]
[1720832257821,2.75732674,3141.5,3141.3,0.10496796]
[1720832258018,2.75733286,3141.6,3141.3,0.10496796]
[1720832258202,2.75733208,3141.6,3141.2,0.8]
[1720832258394,2.33424831,3141.3,3141.2,0.8]
[1720832258991,2.75733208,3141.5,3141.2,0.8]
[1720832259187,2.33416791,3141.3,3141.2,0.8]
[1720832259383,2.3341691,3141.3,3141.2,0.8]
[1720832260187,3.30995196,3141.9,3141.2,0.8]
[1720832260388,2.33413631,3141.3,3141.2,0.8]
[1720832260925,3.30995196,3141.9,3141.2,0.90504266]
[1720832261123,2.33401373,3141.3,3141.2,0.90504266]
[1720832262095,2.66750581,3141.3,3141.2,0.90504266]
[1720832262295,0.33349208,3141.3,3141.2,0.90504266]
[1720832269810,3.09087824,3141.3,3141.2,0.90504266]
[1720832270010,3.09087824,3141.3,3141.2,0.8]
[1720832270234,3.09087824,3141.3,3141.2,0.90506652]
[1720832270520,0.33349208,3141.3,3141.2,0.8]
[1720832270725,3.09104735,3141.3,3141.2,0.8]
[1720832270923,3.63880209,3141.3,3141.2,0.8]
[1720832271126,3.63879118,3141.3,3141.2,0.8]
[1720832271328,3.63879118,3141.3,3140.9,0.813]
[1720832271531,3.63879118,3141.3,3141.2,0.30506533]
[1720832271730,3.63879118,3141.3,3141.2,0.2]
[1720832273016,0.33349208,3141.3,3141.2,0.2]
[1720832273413,2.66807115,3141.3,3141.2,0.30506533]
[1720832274032,0.33349208,3141.3,3141.2,0.30506533]
[1720832274532,3.09080615,3141.3,3141.2,0.30506533]
[1720832274832,0.33349208,3141.3,3141.2,0.30506533]
[1720832275043,3.09082389,3141.3,3141.2,0.30506533]
[1720832275331,0.33349208,3141.3,3141.2,0.30506533]
[1720832275531,0.33349208,3141.3,3141.2,0.50506533]
[1720832275733,3.09082389,3141.3,3141.2,0.4]
[1720832278134,3.09092356,3141.3,3141.2,0.4]
[1720832278504,3.09089094,3141.3,3141.2,0.4]
[1720832279054,0.33349208,3141.3,3141.2,0.4]
[1720832279625,0.33349208,3141.3,3141.2,0.6]
[1720832279826,0.33349208,3141.3,3141.2,0.70507488]
[1720832280302,2.66796151,3141.3,3141.2,0.70507488]
[1720832280931,2.66798786,3141.3,3141.2,0.70507488]
[1720832282228,0.33349208,3141.3,3141.2,0.70507488]
[1720832283734,0.33349208,3141.3,3141.2,0.90507488]
[1720832287956,0.33349208,3141.3,3141.2,1.10507488]
[1720832295963,0.33349208,3141.3,3141.2,3.54717488]
[1720832296535,0.33349208,3141.3,3141.2,5.77561488]
[1720832301072,0.33349208,3141.3,3141.2,3.54717488]
[1720832301258,2.33395217,3141.3,3141.2,3.54717488]
[1720832303561,2.33370369,3141.3,3141.2,3.54717488]
[1720832303757,0.33349208,3141.3,3141.2,3.54717488]
[1720832303958,2.3337032,3141.3,3141.2,3.54717488]
[1720832305239,0.33349208,3141.3,3141.2,1.10507488]
[1720832314864,0.33349208,3141.3,3141.2,1.0]
[1720832315178,0.33349208,3141.3,3141.2,1.10498653]
[1720832315867,2.66700085,3141.3,3141.2,1.10498653]
[1720832316073,0.33349208,3141.3,3141.2,1.10498653]
[1720832316262,0.33349208,3141.3,3141.2,1.91798653]
[1720832316783,2.33350877,3141.4,3141.2,1.91798653]
[1720832317485,2.696747,3141.8,3141.2,1.91798653]
[1720832317486,2.33389707,3141.5,3141.2,1.91798653]
[1720832317662,2.33389707,3141.4,3141.2,1.91798653]
[1720832317861,2.33389707,3141.4,3141.2,0.91798653]
[1720832318064,2.33389707,3141.4,3141.2,1.11798653]
[1720832318851,2.33389707,3141.5,3141.2,1.11798653]
[1720832319866,3.02659062,3141.7,3141.4,0.813]
[1720832320070,2.33417743,3141.5,3141.4,0.813]
[1720832320586,3.02659062,3141.7,3141.4,0.813]
[1720832320892,2.75737943,3141.7,3141.4,0.813]
[1720832321091,5.45412643,3141.8,3141.5,0.10478036]
[1720832321287,6.7417439,3141.8,3141.5,0.10478036]
[1720832321493,6.7417439,3141.8,3141.4,0.813]
[1720832321785,2.33466349,3141.5,3141.4,0.813]
[1720832322191,2.33466349,3141.5,3141.4,0.91785505]
[1720832322760,2.75758426,3141.7,3141.4,0.91785505]
[1720832322983,4.04501739,3141.7,3141.4,0.91785505]
[1720832323985,4.04501739,3141.7,3141.4,0.10485505]
[1720832323986,1.28743313,3141.7,3141.4,0.10485505]
[1720832324289,4.04585205,3141.7,3141.2,1.213]
[1720832324470,2.33517445,3141.4,3141.2,1.213]
[1720832324669,2.33517445,3141.4,3141.3,0.10492974]
[1720832324871,2.33517445,3141.4,3141.2,1.213]
[1720832325272,2.33517445,3141.4,3141.3,0.10492854]
[1720832325492,2.75841892,3141.6,3141.2,1.213]
[1720832325656,2.33571689,3141.3,3141.2,1.213]
[1720832326261,2.33571689,3141.3,3141.2,1.413]
[1720832327381,1.28743313,3141.7,3141.2,1.413]
[1720832327583,2.33583082,3141.3,3141.2,1.413]
[1720832330467,2.33583082,3141.3,3141.2,1.613]
[1720832330869,2.33585546,3141.3,3141.2,1.613]
[1720832331089,2.33585604,3141.3,3141.2,1.613]
[1720832331471,2.3358607,3141.3,3141.2,1.613]
[1720832334007,2.33752188,3141.3,3141.2,1.613]
[1720832334165,1.28743313,3141.7,3141.2,1.613]
[1720832334370,2.33799827,3141.3,3141.2,1.613]
[1720832334675,2.33799827,3141.3,3141.2,1.813]
[1720832334878,2.338295,3141.3,3141.2,1.813]
[1720832336008,2.338295,3141.3,3141.2,1.91800324]
[1720832337783,1.28743313,3141.7,3141.2,1.91800324]
[1720832337991,2.33875077,3141.3,3141.2,1.91800324]
[1720832341022,1.28743313,3141.7,3141.2,1.91800324]
[1720832341320,2.33899595,3141.3,3141.2,1.91800324]
[1720832341520,2.33898663,3141.3,3141.2,1.91800324]
[1720832343745,2.33910735,3141.3,3141.2,1.91800324]
[1720832344030,2.33910533,3141.3,3141.2,1.91800324]
[1720832347322,2.76427571,3141.5,3141.2,1.91800324]
[1720832347625,2.3756,3141.4,3141.2,1.91800324]
[1720832348798,3.04070328,3141.5,3141.2,1.91800324]
[1720832350649,0.27642757,3141.5,3141.2,1.91800324]
[1720832350937,3.04074371,3141.5,3141.2,1.91800324]
[1720832351313,3.04085787,3141.5,3141.2,1.91800324]
[1720832353531,0.27642757,3141.5,3141.2,1.91800324]
[1720832353738,3.04060247,3141.5,3141.2,1.91800324]
[1720832354032,0.27642757,3141.5,3141.2,1.91800324]
[1720832354231,3.04069448,3141.5,3141.2,1.91800324]
[1720832357506,3.04080905,3141.5,3141.2,1.91800324]
[1720832359138,2.76438148,3141.4,3141.2,1.91800324]
[1720832360914,2.76410112,3141.4,3141.2,1.91800324]
[1720832361476,0.27642757,3141.5,3141.2,1.91800324]
[1720832361631,2.76446071,3141.4,3141.2,1.91800324]
[1720832363948,2.76422438,3141.4,3141.2,1.91800324]
[1720832364761,2.76422438,3141.4,3141.2,0.91800324]
[1720832367747,2.76418021,3141.4,3141.2,0.91800324]
[1720832368058,2.2621,3141.3,3141.2,0.10500324]
[1720832368262,2.2621,3141.3,3141.1,0.813]
[1720832368469,2.76364765,3141.2,3141.1,0.813]
[1720832368839,2.76364765,3141.2,3140.7,2.3117]
[1720832369167,2.76364765,3141.2,3141.1,0.813]
[1720832369457,2.76364765,3141.3,3141.1,0.813]
[1720832371063,5.57205196,3141.6,3141.1,0.813]
[1720832371228,2.76310101,3141.3,3141.1,0.813]
[1720832371765,2.76291843,3141.3,3141.1,0.813]
[1720832372532,2.76291843,3141.4,3141.1,0.813]
[1720832372963,2.76291843,3141.3,3141.1,0.813]
[1720832374138,2.76283686,3141.4,3141.1,0.813]
[1720832374341,3.37576258,3141.4,3141.1,0.813]
[1720832374569,3.37576327,3141.4,3141.1,0.813]
[1720832374945,2.76283755,3141.4,3141.1,3.1247]
[1720832375348,2.76283755,3141.4,3141.2,0.10502594]
[1720832376460,2.66709186,3141.4,3141.2,0.10502594]
[1720832377162,3.30995196,3141.8,3141.4,0.2]
[1720832377364,7.75334204,3141.9,3141.7,0.813]
[1720832377748,3.30995196,3142.1,3141.7,0.813]
[1720832377960,1.2992052,3142.1,3141.7,0.813]
[1720832380488,2.76215262,3141.9,3141.7,0.813]
[1720832381373,2.76211768,3141.9,3141.7,0.813]
[1720832381783,2.76194637,3141.9,3141.7,0.813]
[1720832383377,2.76194637,3141.9,3141.5,0.813]
[1720832383582,2.3379765,3141.6,3141.5,0.813]
[1720832384150,2.3379974,3141.7,3141.5,0.813]
[1720832384482,2.24226698,3141.6,3141.5,0.813]
[1720832385394,2.76175943,3141.8,3141.4,0.4]
[1720832385751,2.76175943,3141.7,3141.4,0.4]
[1720832387899,2.76141901,3141.6,3141.4,0.4]
[1720832388361,2.76141901,3141.7,3141.4,0.4]
[1720832388863,2.76141901,3141.6,3141.4,0.4]
[1720832389079,2.76141901,3141.6,3141.5,0.10476006]
[1720832389684,2.76141901,3141.6,3141.4,0.4]
[1720832390184,2.66567973,3141.6,3141.4,0.4]
[1720832391371,6.0737779,3141.9,3141.4,0.4]
[1720832391558,1.34937779,3141.8,3141.4,0.4]
[1720832394277,2.76141486,3141.6,3141.4,0.4]
[1720832395176,2.76134115,3141.6,3141.4,0.4]
[1720832395714,1.34937779,3141.8,3141.4,0.4]
[1720832396415,2.76131292,3141.6,3141.4,0.4]
[1720832399092,1.34937779,3141.8,3141.4,0.4]
[1720832399421,2.76134742,3141.6,3141.4,0.4]
[1720832400698,2.66560692,3141.6,3141.4,0.4]
[1720832401661,1.34937779,3141.8,3141.4,0.4]
[1720832404608,2.76124528,3141.6,3141.4,0.4]
[1720832405144,2.76125479,3141.6,3141.4,0.4]
[1720832405751,3.17231805,3141.6,3141.4,0.4]
[1720832406044,5.20735479,3141.5,3141.4,0.4]
[1720832406246,2.4461,3141.5,3141.4,0.4]
[1720832407748,5.20699775,3141.5,3141.4,0.4]
[1720832408212,2.4461,3141.5,3141.4,0.4]
[1720832408415,5.49275658,3141.5,3141.4,0.4]
[1720832408616,2.73181633,3141.5,3141.4,0.4]
[1720832411532,2.73181633,3141.5,3140.9,0.813]
[1720832411727,2.24089011,3141.0,3140.9,3.1798]
[1720832412078,2.7601644,3141.3,3140.9,3.1798]
[1720832412079,2.33664972,3141.1,3140.9,3.1798]
[1720832412256,2.3366785,3141.1,3141.0,0.813]
[1720832414603,2.33646593,3141.1,3141.0,0.813]
[1720832414902,3.30995196,3141.7,3141.0,0.813]
[1720832415064,2.33645958,3141.1,3141.0,0.813]
[1720832417090,2.75994288,3141.3,3141.0,0.813]
[1720832417304,3.1227128,3141.3,3141.0,0.813]
[1720832417774,2.75994288,3141.3,3141.0,0.813]
[1720832417998,2.75994288,3141.3,3140.2,2.22911]
[1720832417999,2.66419566,3141.3,3140.7,2.4033]
[1720832418153,2.33663089,3141.0,3140.9,0.813]
[1720832418666,2.33663089,3141.0,3140.9,0.91455992]
[1720832419003,2.33663089,3141.1,3140.9,0.10155992]
[1720832419292,2.33663089,3141.0,3140.7,2.4033]
[1720832419496,2.33663089,3141.0,3140.9,0.813]
[1720832419651,2.33663089,3141.0,3140.9,0.91455756]
[1720832420502,2.33663089,3141.1,3140.9,0.91455756]
[1720832421585,9.8661,3141.5,3140.9,0.91455756]
[1720832421800,2.33626109,3141.1,3140.9,0.91455756]
[1720832422116,11.1837052,3141.5,3140.9,0.813]
[1720832422294,2.33620738,3141.0,3140.9,0.813]
[1720832424609,2.33599476,3141.0,3140.9,0.813]
[1720832424976,2.33600168,3141.0,3140.9,0.813]
[1720832428209,2.33600168,3141.0,3140.5,2.4681]
[1720832428417,2.33600168,3141.0,3140.0,2.4681]
[1720832428418,2.33626481,3140.8,3140.0,2.4681]
[1720832428718,0.392019,3141.0,3140.2,0.813]
[1720832428719,2.33565063,3140.4,3140.2,0.813]
[1720832429300,2.33565063,3140.3,3140.2,0.813]
[1720832429505,2.33565063,3140.4,3140.2,0.813]
[1720832430025,2.33565063,3140.3,3140.2,0.813]
[1720832430443,2.33565063,3140.4,3140.2,0.813]
[1720832430645,2.33565063,3140.3,3140.0,0.813]
[1720832430945,2.33374283,3140.2,3140.1,0.09879927]
[1720832431307,2.33374283,3140.2,3140.0,0.813]
[1720832431639,2.2518,3140.7,3140.0,0.813]
[1720832431640,2.2518,3140.7,3140.1,0.09879927]
[1720832431846,2.33292575,3140.2,3140.1,0.09879927]
[1720832432007,2.33292575,3140.2,3140.0,0.813]
[1720832432337,2.33292973,3140.2,3140.1,0.09879927]
[1720832432651,2.33292973,3140.3,3140.1,0.09879927]
[1720832433612,2.33292973,3140.3,3140.0,0.813]
[1720832434044,2.33292973,3140.3,3140.1,0.09886557]
[1720832434414,2.33292973,3140.4,3140.0,0.813]
[1720832434614,1.99798636,3140.1,3140.0,0.813]
[1720832434911,7.42,3140.6,3140.0,0.91203997]
[1720832435113,2.33098302,3140.3,3140.0,0.813]
[1720832435347,2.33098302,3140.3,3140.1,0.09896522]
[1720832435580,2.33098302,3140.4,3140.1,0.09896522]
[1720832435718,2.33098302,3140.4,3140.0,0.813]
[1720832435919,1.99756856,3140.1,3140.0,0.813]
[1720832436124,1.99756856,3140.1,3140.0,0.91203997]
[1720832436633,2.33098302,3140.4,3140.0,0.91203997]
[1720832436634,1.99756856,3140.2,3140.0,0.91203997]